bitfinex/quotes_ETHUSD_20250804
["timestamp","ask_amount","ask_price","bid_price","bid_amount"]
[1754316474180,0.4543,3650.8,3649.1,1.1387]
[1754316474380,0.4543,3650.8,3649.3,2.74025155]
[1754316474593,2.73938518,3650.5,3649.6,2.74001127]
[1754316474793,0.4543,3651.3,3649.7,5.91309951]
[1754316474993,0.4543,3651.3,3649.8,4.746]
[1754316475179,2.73964299,3650.2,3649.9,4.746]
[1754316475496,2.73967506,3650.1,3649.9,4.746]
[1754316475673,0.4543,3650.6,3649.8,4.745]
[1754316476003,2.73973334,3650.0,3649.2,3.87896696]
[1754316476201,0.4543,3650.6,3649.7,4.746]
[1754316476401,2.7393657,3650.5,3649.5,2.74010138]
[1754316476707,2.7393657,3650.5,3649.4,3.8788764]
[1754316476708,0.4543,3651.4,3649.6,9.08220696]
[1754316477002,2.73933603,3650.6,3649.8,2.73987517]
[1754316477189,2.73942186,3650.5,3649.7,2.73989506]
[1754316477389,2.7394325,3650.4,3649.7,2.73989506]
[1754316477596,2.73950887,3650.3,3649.6,9.08221975]
[1754316477992,0.4543,3651.0,3649.6,6.3422]
[1754316478325,2.73936776,3650.5,3649.8,2.73985967]
[1754316478466,2.73911694,3650.9,3649.6,6.3422]
[1754316478670,0.1368,3651.0,3650.4,0.1368]
[1754316478870,0.1368,3651.0,3650.5,4.737]
[1754316479073,0.1368,3651.0,3650.5,5.8757]
[1754316479333,2.87578668,3651.0,3650.5,5.8757]
[1754316479605,2.8760642,3650.7,3650.3,4.735]
[1754316479904,0.1368,3650.7,3650.3,4.735]
[1754316480091,2.87603184,3650.7,3650.3,4.735]
[1754316480293,2.73942581,3650.4,3650.3,4.734]
[1754316480695,2.73913152,3650.8,3649.8,1.1387]
[1754316480894,0.1368,3650.5,3650.0,0.1368]
[1754316481101,2.87616383,3650.5,3650.0,0.1368]
[1754316481423,0.8994,3651.3,3650.1,1.5664]
[1754316481724,0.1368,3650.7,3650.1,1.5664]
[1754316481918,0.1368,3650.7,3650.0,2.87648824]
[1754316481919,2.73932909,3650.6,3650.0,0.1368]
[1754316482219,0.1368,3650.7,3650.1,4.726]
[1754316482421,2.87601475,3650.7,3650.1,4.726]
[1754316482623,2.73847433,3651.7,3650.3,2.73949915]
[1754316482822,0.1368,3651.0,3650.3,0.1368]
[1754316483122,2.73927272,3650.7,3650.3,0.1368]
[1754316483527,0.1368,3650.8,3650.3,0.1368]
[1754316483734,0.1368,3650.8,3650.1,0.1368]
[1754316483881,2.73922748,3650.7,3650.2,4.719]
[1754316484083,2.87594933,3650.8,3650.2,4.719]
[1754316484415,2.73898495,3651.0,3649.7,1.1185]
[1754316484416,2.876238,3650.4,3649.8,4.8558]
[1754316484581,0.1368,3650.4,3649.8,4.8558]
[1754316484781,0.1368,3650.4,3650.0,2.7396747]
[1754316485203,0.8994,3651.1,3648.2,2.7410033]
[1754316485431,3.19381821,3650.7,3649.8,2.73987047]
[1754316485737,2.73927573,3650.6,3649.9,2.73978698]
[1754316486019,0.8994,3651.0,3649.6,1.1185]
[1754316486319,3.19384407,3650.7,3649.6,5.8285]
[1754316486534,0.4546,3651.2,3649.7,1.5664]
[1754316486738,30.8994,3651.1,3649.6,4.71]
[1754316487037,1.354,3651.0,3649.5,4.707]
[1754316487335,3.0,3650.8,3648.8,0.002]
[1754316487540,36.0271,3650.9,3649.0,2.74041719]
[1754316487541,2.74000438,3649.7,3649.0,2.74041719]
[1754316487834,2.74000438,3649.7,3648.9,4.707]
[1754316487835,0.4546,3650.3,3648.9,8.56604113]
[1754316488042,2.74007719,3649.6,3648.9,8.56602558]
[1754316488186,0.4546,3649.7,3648.8,0.002]
[1754316488386,0.4546,3650.2,3648.9,1.1185]
[1754316488687,7.44248245,3650.4,3649.1,2.74040174]
[1754316488888,2.7394279,3650.4,3649.6,2.73998752]
[1754316489341,0.8655,3651.1,3649.6,2.73998752]
[1754316489342,0.4546,3651.4,3649.7,1.5664]
[1754316489634,2.73891943,3651.1,3650.4,2.73937528]
[1754316489833,2.73891943,3651.1,3650.4,2.73937201]
[1754316490001,2.73891943,3651.1,3650.4,2.73937846]
[1754316490322,0.4546,3651.1,3650.1,4.702]
[1754316490645,2.73895773,3651.1,3650.1,4.702]
[1754316490820,2.73895773,3651.1,3650.4,2.73937214]
[1754316491118,0.4546,3651.6,3650.2,3.85807241]
[1754316491119,0.4546,3651.6,3650.2,1.1185]
[1754316491319,2.73898243,3651.0,3650.3,2.7394539]
[1754316491537,0.4546,3651.3,3649.9,4.698]
[1754316491686,2.73916797,3650.8,3650.1,2.73964922]
[1754316491895,0.4546,3651.8,3650.2,1.5664]
[1754316492108,0.4546,3651.8,3650.3,1.1185]
[1754316492297,0.8655,3651.8,3650.3,1.1185]
[1754316492505,2.73725231,3653.3,3650.3,1.1185]
[1754316492506,2.73771472,3652.7,3650.8,2.73908668]
[1754316492709,0.4546,3652.8,3651.9,2.73828062]
[1754316492710,4.697,3652.8,3651.9,2.73828062]
[1754316492935,4.697,3652.8,3651.9,2.73822747]
[1754316492936,4.702,3652.8,3651.9,2.73822747]
[1754316493210,1e-08,3652.9,3652.7,2.73768402]
[1754316493426,1e-08,3652.9,3652.0,1.5664]
[1754316493641,1e-08,3652.9,3652.8,2.73762593]
[1754316493840,1e-08,3652.9,3652.1,1.1185]
[1754316493988,1e-08,3652.9,3652.3,1.1185]
[1754316494188,1e-08,3652.9,3652.0,0.4479]
[1754316494422,1e-08,3652.9,3652.2,2.73806572]
[1754316494926,2.73757202,3652.9,3652.2,2.73806572]
[1754316495330,0.1368,3652.6,3652.1,0.1368]
[1754316495530,0.1368,3652.6,3651.9,1.1185]
[1754316495732,1e-08,3652.9,3651.9,3.85678807]
[1754316496041,1e-08,3652.9,3651.5,2.73860057]
[1754316496042,2.7379117,3652.5,3651.5,2.73860057]
[1754316496343,0.4546,3652.8,3651.8,0.1368]
[1754316496344,2.8747924,3652.4,3651.8,0.1368]
[1754316496538,0.1368,3652.4,3651.8,0.1368]
[1754316496716,2.73800846,3652.3,3651.8,0.1368]
[1754316496910,2.73795712,3652.4,3651.4,1.1185]
[1754316497110,0.1368,3652.1,3651.6,0.1368]
[1754316497366,0.4546,3652.1,3651.0,2.738963]
[1754316497654,0.1368,3651.6,3650.9,3.99433033]
[1754316497860,2.73896762,3651.1,3650.9,0.1368]
[1754316498182,0.4546,3651.5,3650.9,0.1368]
[1754316498308,2.73897562,3651.0,3650.9,0.1368]
[1754316498508,0.4546,3651.5,3650.2,3.85802283]
[1754316498708,0.1368,3650.8,3650.3,0.1368]
[1754316498967,1.3201,3651.5,3649.7,1.1185]
[1754316499145,0.1368,3650.4,3649.9,0.1368]
[1754316499311,0.1368,3650.4,3649.7,1.1185]
[1754316499312,4.703,3650.9,3649.7,0.1368]
[1754316499658,0.1368,3650.2,3649.6,0.1368]
[1754316499854,0.4546,3650.8,3649.2,1.2553]
[1754316500008,0.1368,3650.0,3649.9,2.73974416]
[1754316500211,0.1368,3650.0,3649.4,0.1368]
[1754316500212,0.1368,3650.0,3649.7,2.73991478]
[1754316500446,0.1368,3650.0,3649.8,2.73987397]
[1754316500629,0.1368,3650.0,3649.9,2.73980109]
[1754316501130,0.1368,3650.0,3649.9,3.85830109]
[1754316501443,0.1368,3650.2,3649.9,1.1185]
[1754316501844,0.8655,3651.3,3649.2,2.74030827]
[1754316501845,2.73882888,3651.2,3650.2,2.73955194]
[1754316502048,2.73882888,3651.2,3648.9,2.74054275]
[1754316502049,30.0,3651.1,3649.9,2.73975138]
[1754316502250,30.0,3651.1,3649.6,1.1185]
[1754316502251,35.1486,3651.1,3649.6,1.1185]
[1754316502550,35.1486,3651.1,3649.0,2.74045771]
[1754316502551,1.3201,3651.0,3649.3,1.1185]
[1754316502748,2.73930279,3650.6,3649.6,2.74001476]
[1754316502953,3.19390279,3650.6,3649.6,2.74001476]
[1754316503124,2.73935815,3650.5,3649.6,2.74001476]
[1754316503327,0.4546,3650.6,3649.3,1.1185]
[1754316503328,0.4546,3650.6,3649.7,2.73995061]
[1754316503525,3.19393608,3650.6,3649.4,2.74010186]
[1754316503752,2.73935161,3650.5,3649.6,2.73996837]
[1754316503952,2.73957433,3650.3,3649.3,1.1185]
[1754316504144,2.73957433,3650.3,3649.3,3.85868312]
[1754316504450,3.60485077,3650.5,3649.3,3.85868312]
[1754316504640,3.60485077,3650.5,3649.4,2.74017047]
[1754316504842,3.60486259,3650.5,3649.5,2.74009761]
[1754316505159,2.73905064,3650.9,3649.9,2.73977445]
[1754316505320,30.0,3650.9,3650.1,2.73963852]
[1754316505525,0.4546,3651.0,3649.9,1.1185]
[1754316505733,2.73926113,3650.7,3649.5,2.74009694]
[1754316506025,3.19364699,3651.0,3650.0,2.73968881]
[1754316506225,5.1446,3651.0,3649.9,2.7397866]
[1754316506445,2.73924666,3650.7,3649.6,3.85851074]
[1754316506655,5.5555,3651.0,3649.6,3.85851074]
[1754316506656,2.73937322,3650.5,3649.7,2.73994524]
[1754316506863,0.4546,3650.6,3649.1,1.1185]
[1754316507041,2.73952149,3650.3,3649.2,0.24357285]
[1754316507242,2.73944226,3650.4,3649.6,2.74001506]
[1754316507442,2.73937108,3650.5,3649.6,2.74001506]
[1754316507644,2.73920868,3650.7,3649.6,1.1185]
[1754316507846,2.73927573,3650.6,3649.6,1.1185]
[1754316508040,2.73937655,3650.5,3649.7,2.73992259]
[1754316508241,2.73937655,3650.5,3649.6,3.85847642]
[1754316508452,2.73937655,3650.5,3649.7,2.73994046]
[1754316508624,0.4546,3651.0,3650.1,2.73959997]
[1754316508826,2.73925596,3650.7,3649.8,1.1185]
[1754316509033,2.7391543,3650.8,3650.0,2.73972285]
[1754316509363,2.73918583,3650.8,3649.9,2.73973099]
[1754316509574,2.73918583,3650.8,3650.0,2.73971516]
[1754316509883,0.55,3650.2,3647.0,6.579]
[1754316510176,3.0,3650.0,3648.2,1.1185]
[1754316510341,0.55,3650.6,3648.3,0.2438004]
[1754316510342,2.73987615,3649.8,3648.3,0.2438004]
[1754316510544,2.74047684,3649.0,3648.3,0.2438004]
[1754316510942,2.74010138,3649.5,3648.8,0.00163698]
[1754316511376,2.74048935,3649.0,3648.8,0.00163698]
[1754316511576,3.4546,3649.7,3648.8,0.00163698]
[1754316511875,30.0,3649.6,3648.8,0.00163698]
[1754316512083,2.87735194,3648.9,3648.8,0.00163698]
[1754316512440,0.1368,3648.9,3648.8,0.00163698]
[1754316513785,0.1368,3648.9,3648.8,1.60933698]
[1754316513953,0.1368,3648.9,3648.8,0.00163698]
[1754316514142,2.87735194,3648.9,3648.8,0.00163698]
[1754316514341,0.1368,3648.9,3648.8,0.00163698]
[1754316514956,2.87735194,3648.9,3648.8,0.00163698]
[1754316515282,0.1368,3648.9,3648.8,0.00163698]
[1754316515805,0.1368,3648.9,3648.8,1.17863698]
[1754316516211,0.1368,3648.9,3648.8,0.00163698]
[1754316516363,2.87735194,3648.9,3648.8,0.00163698]
[1754316517291,3.34095194,3648.9,3648.8,0.00163698]
[1754316517495,4.16485194,3648.9,3648.8,0.00163698]
[1754316518134,2.87735194,3648.9,3648.8,0.00163698]
[1754316518999,3.34095194,3648.9,3648.8,0.00163698]
[1754316519534,7.16485194,3648.9,3648.8,0.00163698]
[1754316519704,8.87785194,3648.9,3648.8,0.00163698]
[1754316520202,41.87785194,3648.9,3648.8,0.00163698]
[1754316520725,41.87785194,3648.9,3648.8,1e-08]
[1754316520919,44.07585194,3648.9,3648.8,1e-08]
[1754316521322,37.71485194,3648.9,3648.8,1e-08]
[1754316521634,2.74150976,3647.7,3646.9,0.4307]
[1754316521790,2.7414071,3647.8,3647.1,2.74189713]
[1754316521996,0.4636,3649.0,3647.2,0.4307]
[1754316522235,32.74056258,3648.9,3647.2,0.4307]
[1754316522427,2.7410798,3648.2,3647.2,0.4307]
[1754316522736,2.74121346,3648.1,3646.6,2.74226531]
[1754316522939,2.74162581,3647.5,3646.8,2.74206986]
[1754316523108,1.5559,3648.1,3646.8,0.4307]
[1754316523299,2.74130606,3647.9,3646.8,0.4307]
[1754316523505,2.74130606,3647.9,3647.2,2.74177109]
[1754316523817,2.74130105,3648.0,3647.3,3.91874488]
[1754316524029,2.74117207,3648.1,3647.4,2.74161526]
[1754316524231,1.0923,3648.6,3647.3,1.177]
[1754316524431,1.0923,3649.0,3647.8,2.74136078]
[1754316524593,2.74062614,3648.9,3648.0,2.74120542]
[1754316524794,1.0923,3649.5,3648.1,1.6077]
[1754316524795,2.74049047,3649.0,3648.1,1.6077]
[1754316524999,4.709,3649.4,3648.1,1.6077]
[1754316525000,2.74063531,3648.8,3648.1,4.34882675]
[1754316525212,2.74047684,3649.0,3647.7,1.6077]
[1754316525414,2.74097779,3648.4,3647.7,4.3491003]
[1754316525739,2.74083195,3648.6,3647.9,2.74124773]
[1754316525915,2.74086864,3648.5,3647.9,2.74124773]
[1754316526100,2.73850082,3651.7,3648.0,1.6077]
[1754316526295,2.7398805,3649.8,3649.1,2.74039346]
[1754316526506,2.7398805,3649.8,3649.2,3.91731442]
[1754316526507,2.73988167,3649.8,3649.2,3.91731442]
[1754316526718,2.73974579,3650.0,3649.2,1.177]
[1754316526936,3.83171366,3650.5,3649.2,1.177]
[1754316527118,2.73940754,3650.5,3649.7,2.73987811]
[1754316527318,2.73940754,3650.5,3649.7,1.177]
[1754316527536,2.73942839,3650.4,3649.7,3.91694482]
[1754316527720,5.8003,3651.0,3649.7,1.177]
[1754316528034,2.73934893,3650.6,3649.6,2.73995206]
[1754316528215,4.703,3650.8,3649.6,1.177]
[1754316528723,2.7397115,3650.1,3649.6,1.177]
[1754316528921,2.73957791,3650.2,3649.6,1.177]
[1754316529237,2.7395621,3650.3,3649.6,1.177]
[1754316529399,1.0923,3650.7,3649.6,1.177]
[1754316529604,3.20293322,3650.6,3649.3,0.4307]
[1754316529814,2.73950086,3650.3,3649.1,1.177]
[1754316530015,2.73978452,3650.0,3649.1,1.177]
[1754316530334,2.74032664,3649.2,3649.1,1.177]
[1754316530537,2.74032664,3649.2,3648.7,4.698]
[1754316530841,2.74032664,3649.2,3648.4,0.002]
[1754316530842,1.5559,3649.2,3648.4,0.002]
[1754316531039,2.73947833,3650.4,3648.4,1.6097]
[1754316531040,2.74042449,3649.1,3648.4,1.6097]
[1754316531210,6.2509,3649.8,3648.4,1.6097]
[1754316531410,2.7400263,3649.6,3648.4,0.002]
[1754316531623,2.74060795,3648.9,3648.4,0.002]
[1754316531810,1.0923,3649.5,3648.4,0.002]
[1754316532018,2.7408524,3648.5,3648.4,0.002]
[1754316532654,3.8331524,3648.5,3648.4,0.002]
[1754316532864,4.4335524,3648.5,3648.4,0.002]
[1754316533085,2.8776524,3648.5,3648.4,0.002]
[1754316533268,3.83247646,3649.4,3648.4,0.002]
[1754316533269,0.1368,3648.6,3648.4,0.002]
[1754316533433,2.7408524,3648.5,3648.4,0.002]
[1754316533937,0.1368,3648.6,3648.4,0.002]
[1754316534140,2.7408524,3648.5,3648.4,0.002]
[1754316534367,0.1368,3648.6,3648.5,1.6077]
[1754316534669,0.1368,3648.7,3648.5,1.6077]
[1754316535369,0.1368,3648.7,3648.5,1.177]
[1754316535683,2.74077728,3648.6,3648.4,0.002]
[1754316535868,0.1368,3648.5,3648.4,0.002]
[1754316536589,0.1368,3648.5,3648.4,1.179]
[1754316536746,0.1368,3648.7,3648.4,4.35062752]
[1754316536952,0.1368,3648.7,3648.5,1.6077]
[1754316537639,0.1368,3648.7,3648.4,2.74292441]
[1754316537836,0.1368,3648.7,3648.5,1.177]
[1754316538041,0.1368,3648.7,3648.5,4.34853673]
[1754316538237,2.74025875,3649.3,3648.4,2.74289867]
[1754316538442,2.7408524,3648.5,3648.4,0.002]
[1754316538769,2.74028426,3649.3,3648.4,0.002]
[1754316538972,4.694,3649.2,3648.4,0.002]
[1754316539471,2.74082799,3648.6,3648.4,0.002]
[1754316539694,1.5559,3649.1,3648.4,0.002]
[1754316539892,16.47220858,3650.3,3648.5,1.6077]
[1754316539893,2.7403213,3649.3,3648.5,1.6077]
[1754316540093,1.0923,3649.6,3648.6,2.74072309]
[1754316540400,2.74025155,3649.3,3648.5,2.74082515]
[1754316540609,1.0923,3649.2,3648.4,0.002]
[1754316540809,2.74050031,3649.0,3648.4,0.002]
[1754316540976,1.0923,3649.2,3648.4,0.002]
[1754316541180,2.7408524,3648.5,3648.4,0.002]
[1754316541357,2.7408524,3648.5,3648.4,1e-08]
[1754316541358,37.4348524,3648.5,3648.4,1e-08]
[1754316541565,37.4348524,3648.5,3645.2,6.583]
[1754316541566,3.0,3648.4,3646.0,4.025]
[1754316541869,3.0,3648.4,3646.6,2.74225785]
[1754316541870,2.74177301,3647.3,3646.6,2.74225785]
[1754316542087,4.694,3647.6,3646.4,1.1192]
[1754316542392,31.5534,3647.5,3645.3,4.696]
[1754316542607,30.0,3647.4,3646.0,2.74273176]
[1754316542810,30.0,3647.4,3645.9,1.1192]
[1754316542811,2.7418023,3647.3,3645.9,1.1192]
[1754316543100,3.55,3648.3,3645.7,3.18689149]
[1754316543101,2.74222021,3646.7,3645.7,1e-08]
[1754316543302,4.694,3646.9,3645.7,1e-08]
[1754316543601,1.1092,3646.6,3645.7,1e-08]
[1754316544105,2.74288222,3645.8,3645.7,1e-08]
[1754316544457,8.99128222,3645.8,3645.7,1e-08]
[1754316544809,38.99128222,3645.8,3645.7,1e-08]
[1754316545101,36.2484,3645.8,3645.7,1e-08]
[1754316545300,38.99128222,3645.8,3645.7,1e-08]
[1754316545593,41.99128222,3645.8,3645.7,1e-08]
[1754316545760,5.74318318,3645.4,3645.3,0.002]
[1754316545960,35.74318318,3645.4,3645.3,0.002]
[1754316546208,37.29658318,3645.4,3645.3,0.002]
[1754316546409,42.54158318,3645.4,3645.3,1e-08]
[1754316546700,41.99158318,3645.4,3645.3,1e-08]
[1754316546860,41.99258318,3645.4,3645.3,1e-08]
[1754316547312,37.29658318,3645.4,3645.3,1e-08]
[1754316547506,42.54258318,3645.4,3645.3,1e-08]
[1754316547711,41.99258318,3645.4,3645.3,1e-08]
[1754316548134,42.54258318,3645.4,3645.3,1e-08]
[1754316548354,42.67938318,3645.4,3645.3,1e-08]
[1754316548507,42.12938318,3645.4,3645.3,1e-08]
[1754316548712,37.98338318,3645.4,3645.3,1e-08]
[1754316548908,42.67938318,3645.4,3645.3,1e-08]
[1754316549207,42.12938318,3645.4,3645.3,1e-08]
[1754316549642,42.67938318,3645.4,3645.3,1e-08]
[1754316549964,42.13138318,3645.4,3645.3,1e-08]
[1754316550713,42.68138318,3645.4,3645.3,1e-08]
[1754316551129,37.98338318,3645.4,3645.3,1e-08]
[1754316551361,3.55,3645.3,3643.0,1.1192]
[1754316551664,1.5534,3645.2,3643.0,1.1192]
[1754316551866,3.0,3645.0,3643.1,0.444]
[1754316552024,2.74382849,3644.6,3643.3,2.74470641]
[1754316552223,1.1092,3645.3,3643.4,1.5632]
[1754316552427,2.74156384,3647.6,3643.4,1.5632]
[1754316552428,0.1376,3643.9,3643.8,2.74438772]
[1754316552666,1.5534,3645.9,3643.8,1.5632]
[1754316552849,0.1368,3644.5,3644.4,2.7439359]
[1754316553046,4.698,3645.5,3644.4,1.5632]
[1754316553221,0.1368,3644.9,3644.5,1.5632]
[1754316553441,0.1368,3644.9,3644.6,1.5632]
[1754316553639,0.1368,3644.9,3644.7,1.5632]
[1754316553988,0.1368,3644.4,3644.3,1.1192]
[1754316554138,0.1368,3644.4,3644.3,1.5632]
[1754316554489,0.1368,3644.4,3643.8,2.74431717]
[1754316554490,0.1368,3644.4,3643.9,0.444]
[1754316554636,0.1376,3644.2,3643.8,1.1192]
[1754316554836,0.1376,3644.0,3643.9,1.5632]
[1754316555039,3.0,3645.9,3643.5,1.1192]
[1754316555040,7.4419628,3644.4,3643.5,1.1192]
[1754316555347,0.824467,3645.7,3643.5,1.1192]
[1754316555348,0.1376,3643.7,3643.5,1.1192]
[1754316555552,1.1092,3645.3,3643.6,1.5632]
[1754316555735,0.1376,3643.7,3643.6,3.18853836]
[1754316555934,2.74326816,3645.3,3643.6,0.444]
[1754316556138,0.1376,3643.8,3643.6,0.444]
[1754316556363,0.1376,3644.0,3643.7,1.1192]
[1754316556592,0.1376,3644.0,3643.9,2.74431241]
[1754316556744,1.5534,3646.1,3644.7,2.74365755]
[1754316556940,1.5534,3646.1,3644.7,1.1192]
[1754316556941,30.25366762,3646.0,3644.7,1.1192]
[1754316557144,0.1368,3644.8,3644.7,1.1192]
[1754316557344,0.1368,3644.8,3644.7,4.30691004]
[1754316558292,3.85186686,3646.1,3644.9,2.74349076]
[1754316558579,34.95237929,3646.0,3645.1,2.74334228]
[1754316558782,34.699,3645.9,3645.3,2.74323074]
[1754316558940,4.699,3646.1,3645.3,2.74325844]
[1754316559139,4.699,3646.1,3645.4,1.1192]
[1754316559576,9.33115397,3646.8,3645.4,3.86236159]
[1754316559761,9.33115397,3646.8,3645.3,0.444]
[1754316559762,0.1368,3645.8,3645.5,1.5632]
[1754316559967,0.1368,3646.1,3645.6,1.7]
[1754316560151,0.25333236,3646.7,3645.7,1.5632]
[1754316560356,0.25333236,3646.7,3645.8,1.1192]
[1754316560556,0.4442,3647.5,3645.8,1.5632]
[1754316560557,0.1368,3646.2,3645.8,1.5632]
[1754316560740,36.2514,3646.1,3644.6,1.1192]
[1754316560940,6.59,3646.7,3644.6,1.1192]
[1754316560941,34.95136894,3646.0,3644.7,0.444]
[1754316561154,34.95136894,3646.0,3644.8,1.1192]
[1754316561155,2.74288222,3645.8,3644.8,1.1192]
[1754316561445,4.698,3645.7,3644.9,1.1192]
[1754316561642,1.933479,3646.6,3644.9,1.1192]
[1754316561947,34.95141406,3646.5,3645.0,0.444]
[1754316562232,7.0342,3646.7,3645.0,0.444]
[1754316562233,2.7425061,3646.3,3645.0,0.444]
[1754316562499,30.0,3646.2,3645.2,2.74333122]
[1754316562657,6.59,3646.7,3645.3,1.5632]
[1754316562983,2.74144356,3647.8,3644.8,2.74358976]
[1754316562984,1.933289,3647.3,3645.4,1.5632]
[1754316563197,31.80688521,3647.2,3645.5,1.1192]
[1754316563397,0.25348521,3647.1,3645.6,0.444]
[1754316563689,4.698,3647.7,3646.8,2.74211369]
[1754316563980,9.32992733,3648.5,3647.2,2.74177268]
[1754316563981,0.25361054,3647.6,3647.2,2.74177268]
[1754316564163,4.698,3647.9,3647.3,1.5632]
[1754316564366,0.25361054,3647.8,3647.4,2.7416273]
[1754316564567,4.698,3647.9,3646.8,2.74208041]
[1754316564770,0.25361054,3647.8,3647.3,2.74173144]
[1754316564967,1.1092,3648.3,3647.3,2.74174725]
[1754316565169,1.1092,3648.3,3647.0,2.74194493]
[1754316565170,34.95061054,3648.2,3647.0,2.74194493]
[1754316565369,34.95061054,3648.2,3646.6,2.74220932]
[1754316565370,30.25361054,3648.1,3646.6,2.74220932]
[1754316565574,30.25361054,3648.0,3646.4,1.1192]
[1754316565772,30.25361054,3647.9,3646.4,1.1192]
[1754316566014,0.25361054,3647.8,3647.0,2.74196647]
[1754316566219,4.697,3647.7,3646.9,2.74202977]
[1754316566503,30.25361054,3647.6,3646.3,1.1192]
[1754316566693,30.25361054,3647.5,3646.3,1.1192]
[1754316566862,4.95061054,3647.4,3646.4,0.444]
[1754316567067,0.25361054,3647.3,3646.5,1.1192]
[1754316567314,0.25361054,3647.6,3646.7,2.74214168]
[1754316567498,0.25361054,3647.6,3646.5,3.8615108]
[1754316568006,0.25459452,3647.6,3646.5,0.444]
[1754316568173,0.25459452,3647.6,3646.8,2.74206786]
[1754316568500,0.25459452,3647.6,3647.1,2.74189551]
[1754316568801,4.697,3647.7,3646.8,1.1192]
[1754316569005,0.25489549,3647.6,3646.8,1.1192]
[1754316569205,0.25489549,3647.5,3646.8,1.1192]
[1754316569432,0.25489549,3647.4,3646.8,1.1192]
[1754316569744,0.25489549,3647.6,3646.8,3.86132878]
[1754316569866,0.25489549,3647.5,3646.8,1.1192]
[1754316570207,1.1092,3648.1,3646.8,1.1192]
[1754316570208,4.697,3647.6,3647.0,2.74196638]
[1754316570380,0.25489549,3647.5,3647.1,2.74184256]
[1754316570585,0.25489549,3647.5,3646.4,1.5632]
[1754316570889,0.1368,3647.1,3646.5,2.87913136]
[1754316571088,1.1092,3647.5,3646.6,2.74227266]
[1754316571390,0.1368,3647.3,3647.0,2.74192971]
[1754316571614,0.1368,3647.3,3647.1,1.1351]
[1754316571773,4.696,3647.7,3646.7,1.1351]
[1754316571774,2.74152867,3647.6,3646.7,1.1351]
[1754316571976,0.1368,3646.8,3646.7,3.87730528]
[1754316572310,0.1368,3647.0,3646.7,1.1351]
[1754316572715,0.1368,3647.0,3646.7,2.74213172]
[1754316572884,0.1368,3647.0,3646.9,2.74205489]
[1754316573076,0.1368,3647.2,3647.1,2.74185638]
[1754316573409,0.1368,3647.2,3647.1,1.5873]
[1754316573823,0.1368,3647.3,3647.1,1.61471904]
[1754316573990,0.1368,3647.7,3647.5,2.74160074]
[1754316574193,0.1368,3648.0,3647.6,1.5873]
[1754316574501,0.25533335,3648.4,3647.9,2.74125684]
[1754316574691,0.1368,3648.0,3647.5,0.1368]
[1754316574887,2.74160103,3648.9,3647.9,2.74130321]
[1754316574888,0.25533335,3648.8,3647.9,2.74130321]
[1754316575123,0.1368,3648.3,3648.0,4.32850311]
[1754316575323,0.1368,3648.3,3648.1,1.5873]
[1754316575626,0.1368,3648.3,3648.2,4.32837779]
[1754316576128,0.001,3648.9,3648.2,1.1351]
[1754316576327,0.001,3648.9,3646.1,0.823498]
[1754316576328,0.1368,3648.4,3647.8,1.7241]
[1754316576529,0.1368,3648.4,3647.8,3.8764038]
[1754316576828,0.1368,3647.9,3647.0,1.1351]
[1754316577028,0.1368,3647.7,3647.4,2.74162953]
[1754316577328,0.1368,3647.7,3647.6,2.74152867]
[1754316577526,0.1368,3647.7,3647.3,1.1351]
[1754316577712,0.1368,3647.7,3647.4,2.74165944]
[1754316577912,0.1368,3647.7,3647.2,2.87862206]
[1754316578108,0.1368,3647.7,3647.5,2.74160383]
[1754316578305,0.1368,3647.7,3647.4,1.5873]
[1754316578504,0.1368,3647.7,3647.4,0.4522]
[1754316578709,0.1368,3647.7,3647.5,3.87669086]
[1754316578904,0.1368,3647.7,3647.6,2.74152867]
[1754316579110,0.1368,3647.7,3647.6,3.87662867]
[1754316579730,0.1368,3648.1,3647.7,2.74141033]
[1754316580028,0.1368,3648.1,3647.6,2.74152867]
[1754316580231,0.1368,3648.1,3647.7,3.87654549]
[1754316580434,0.1368,3648.1,3647.8,1.5873]
[1754316580637,0.001,3648.9,3647.9,1.5873]
[1754316580798,0.1368,3648.8,3648.5,2.74083093]
[1754316581207,0.1368,3648.8,3648.5,2.74082763]
[1754316581537,0.1368,3648.8,3648.3,2.7409403]
[1754316581739,0.1368,3648.8,3648.2,1.2719]
[1754316582129,0.1368,3648.4,3648.2,1.1351]
[1754316582501,0.1368,3648.4,3647.9,0.1368]
[1754316582704,0.001,3648.9,3647.6,1.1351]
[1754316582954,0.001,3648.9,3648.1,2.74113326]
[1754316583150,0.1368,3648.3,3648.2,2.74107779]
[1754316583605,0.1368,3648.3,3648.2,4.32837779]
[1754316583810,0.1368,3648.5,3648.4,2.74092068]
[1754316584113,0.1368,3648.5,3648.4,1.1351]
[1754316584307,0.001,3648.9,3648.1,2.74115292]
[1754316584538,0.001,3648.9,3648.4,4.32822752]
[1754316584539,0.1368,3648.6,3648.4,4.32822752]
[1754316584945,0.1368,3648.6,3648.5,2.7408524]
[1754316585142,0.1368,3648.7,3648.5,1.5873]
[1754316585454,0.1368,3648.7,3648.6,1.1351]
[1754316585656,0.1368,3648.7,3648.6,3.87587728]
[1754316585963,0.001,3648.9,3648.8,2.74062705]
[1754316586462,0.001,3648.9,3648.8,5.01472705]
[1754316587010,0.001,3648.9,3648.8,4.46472705]
[1754316587829,0.001,3648.9,3648.8,9.15672705]
[1754316588442,0.001,3648.9,3648.8,2.74062705]
[1754316589483,0.001,3648.9,3648.8,4.32792705]
[1754316589775,0.001,3648.9,3648.8,5.01472705]
[1754316590069,0.001,3648.9,3648.8,2.87742705]
[1754316590276,0.001,3648.9,3648.8,2.74062705]
[1754316590574,0.001,3648.9,3648.6,0.1368]
[1754316590759,0.001,3648.9,3648.5,2.7408511]
[1754316590934,0.001,3648.9,3648.3,4.691]
[1754316590935,0.1368,3648.7,3648.3,4.691]
[1754316591119,0.001,3648.9,3648.8,2.74062705]